Cogmind - Beta 13 @@@ ROGUE MODE // 2024.04.04 @ 19:54:45 Player: KoT Result: Destroyed by 2N-VBT(R) with Subdweller Machine Gun Performance ------------- Evolutions (0) 0 Regions Visited (2) 400 Robots Destroyed (24) 120 Value Destroyed (586) 586 Prototype IDs (2) 40 Alien Tech Used (0) 0 Bonus (0) 0 TOTAL SCORE: 1146 Bonus ------- None Cogmind --------- Core Integrity 0/250 Matter 219/300 Energy 203/250 System Corruption 0% Temperature Cool (0) Movement Core (450) Ox8 Location -10/Subcaves Parts ------- > --- POWER (1) -------- Ion Engine > --- PROPULSION (2) --- (None) > --- UTILITY (2) ------ Large Storage Unit > --- WEAPON (2) ------- Assault Rifle > --- INVENTORY (15) --- Light Nuclear Core Light Nuclear Core Large Storage Unit Humpback Visual Processing Unit Grenade Launcher Grenade Launcher Mining Claw Peak State ------------ > --- POWER ------------ Ion Engine > --- PROPULSION ------- Light Treads > --- UTILITY ---------- Large Storage Unit Sensor Array > --- WEAPON ----------- Battle Rifle Grenade Launcher > --- INVENTORY -------- Ion Engine Light Nuclear Core Light Nuclear Core Large Storage Unit Humpback Visual Processing Unit Riot Gun Assault Rifle Assault Rifle Grenade Launcher Grenade Launcher Grenade Launcher Mining Claw [Rating: 9] Favorites ----------- Power Ion Engine Engine Ion Engine Propulsion Light Treads Treads Light Treads Utility Heat Sink Device Heat Sink Storage Large Storage Unit Weapon Assault Rifle Energy Gun Riot Gun Ballistic Gun Assault Rifle Launcher Grenade Launcher Slashing Weapon Mining Claw Build | -11 -10 -10 ------- Run | Yrd Mat Sub Slots Evolved . | . . . Power . | . . . Propulsion . | . . . Utility . | . . . Weapon . | . . . Parts Attached 21 | 6 7 8 Power 2 | 1 . 1 Engine 2 | 1 . 1 Core . | . . . Reactor . | . . . Propulsion 2 | 2 . . Treads 2 | 2 . . Leg . | . . . Wheel . | . . . Hover . | . . . Flight . | . . . Utility 6 | 1 4 1 Device 3 | . 2 1 Storage 3 | 1 2 . Processor . | . . . Hackware . | . . . Protection . | . . . Artifact . | . . . Weapon 11 | 2 3 6 Energy Gun 1 | . . 1 Energy Cannon . | . . . Ballistic Gun 6 | 2 1 3 Ballistic Cannon . | . . . Launcher 2 | . . 2 Special Weapon . | . . . Impact Weapon . | . . . Slashing Weapon 2 | . 2 . Piercing Weapon . | . . . Special Melee Weapon . | . . . Unidentified Prototypes . | . . . Parts Lost 11 | . 2 9 Power 1 | . . 1 Propulsion 2 | . . 2 Utility 2 | . 1 1 Weapon 6 | . 1 5 Highest Loss Streak 8 | . 1 8 To Critical Strikes 1 | . . 1 Average Slot Usage (%) 86 | . 95 74 Engine 13 | . 14 13 Treads 22 | . 28 14 Device 7 | . 11 3 Storage 14 | . 14 14 Ballistic Gun 20 | . 24 14 Launcher 5 | . . 13 Slashing Weapon 1 | . 2 . Naked Turns . | . . . Heaviest Build 31 | 13 30 31 Greatest Support 40 | 40 40 40 Greatest Overweight (x) 10 | . . 10 Average Overweight (x) . | . . . Largest Inventory Capacity 15 | 8 15 15 Average Capacity 12 | 7 10 15 Most Carried 15 | 5 13 15 Average Carried 9 | 1 7 14 Final Capacity 15 | 8 15 15 Final Carried 12 | 1 12 9 Class Distribution -------------------- 100% | Mutant Dominant Class ---------------- Mutant | -10/Materials Mutant | -10/Subcaves Resources | -11 -10 -10 ----------- Run | Yrd Mat Sub Matter Collected 735 | 224 330 181 Remotely . | . . . Salvage Created 893 | . 755 138 Parts 57 | . 49 8 Haulers Intercepted 1 | . 1 . Recyclers Shooed 2 | . 2 . Parts Field Recycled . | . . . Retrieved Matter . | . . . Parts Self-Destructed 6 | . . 6 Prevented . | . . . Kills | -11 -10 -10 ------- Run | Yrd Mat Sub Combat Hostiles Destroyed 16 | . 11 5 Guns 12 | . 11 1 AOE 4 | . . 4 Classes Destroyed 8 | . 7 1 Worker 1 | . 1 . Builder 1 | . 1 . Hauler 1 | . 1 . Recycler 3 | . 3 . Watcher 2 | . 2 . Swarmer 3 | . 3 . Grunt 8 | . 8 . Subdweller 5 | . . 5 Best Kill Streak 5 | . 5 3 Combat Bots Only 3 | . 3 3 Max Kills in Single Turn 2 | . 2 1 Gunslinging 1 | . 1 . Exploded 1 | . . 1 Melee . | . . . Uniques/NPCs Destroyed . | . . . Combat | -11 -10 -10 -------- Run | Yrd Mat Sub Hostile Shots Fired 125 | . 63 62 Missed 45 | . 23 22 Damage Taken 1364 | . 444 920 Core 252 | . 18 234 Absorbed by Shields . | . . . Core Remaining (%) 100 | 100 . . Volleys Fired 102 | . 65 37 Largest 2 | . 2 2 Hottest 50 | . 40 50 Shots Fired 171 | . 123 48 Gun 161 | . 123 38 Cannon . | . . . Launcher 10 | . . 10 Special . | . . . Kinetic 159 | . 123 36 Thermal . | . . . Explosive 10 | . . 10 Electromagnetic 2 | . . 2 Robot Hit Streak 23 | . 23 21 Robot Miss Streak 4 | . 4 1 Penetration Max . | . . . Secondary Targets 3 | . 3 . Max Gunslinging Chain 1 | . 1 . Shots Hit Robots 133 | . 90 43 Core Hits 51 | . 39 12 Critical Kills . | . . . Critical Parts Destroyed 1 | . 1 . Critical Strikes 2 | . 1 1 Destroy 2 | . 1 1 Melee Attacks 17 | . 17 . Impact . | . . . Slashing 17 | . 17 . Piercing . | . . . Sneak Attacks . | . . . Combat Hostiles . | . . . Follow-up Attacks . | . . . Damage Inflicted 2103 | . 973 1130 Guns 1385 | . 972 413 Cannons . | . . . Explosions 717 | . . 717 Melee . | . . . Ramming 1 | . 1 . Kinetic 1342 | . 972 370 Thermal . | . . . Explosive 717 | . . 717 Electromagnetic 43 | . . 43 Impact . | . . . Slashing . | . . . Piercing . | . . . Highest Corruption . | . . . Average Corruption . | . . . Corruption Purged . | . . . Corruption Blocked . | . . . Overload Shots . | . . . Overflow Damage . | . . . Projectiles . | . . . Explosions . | . . . Melee . | . . . Knockbacks . | . . . Impact . | . . . Kinetic . | . . . Secondary . | . . . Self-Inflicted Damage 30 | . . 30 Shots 1 | . . 1 Rammed . | . . . Targets Rammed 1 | . 1 . Kicked . | . . . Crushed 1 | . 1 . Highest Temperature 23 | . 23 . Average Temperature 10 | . 10 . Received Heat Transfer 375 | . 228 147 Siege Activations . | . . . Robots Corrupted . | . . . Combat Hostiles . | . . . Parts Fried . | . . . Impact Corruptions . | . . . Robots Melted . | . . . Combat Hostiles . | . . . Parts Melted 1 | . . 1 Heat Transferred . | . . . Parts Sabotaged . | . . . Parts Stolen . | . . . Parts Stripped . | . . . Power Chain Reactions . | . . . Alert | -11 -10 -10 ------- Run | Yrd Mat Sub Peak Influence 179 | . 179 . Initial . | . . . Average 47 | . 51 . Maximum Alert Level . | . . . Low Security (%) 100 | 100 100 . Level 1 . | . . . Level 2 . | . . . Level 3 . | . . . Level 4 . | . . . Level 5 . | . . . High Security . | . . . Max Security . | . . . Squads Dispatched 2 | . 2 . Investigation 2 | . 2 . Extermination . | . . . Reinforcement . | . . . Assault . | . . . Garrison . | . . . Intercept . | . . . Searches Triggered . | . . . Construction Impeded . | . . . Haulers Reinforced . | . . . Active Scanning Responses . | . . . Cargo Convoy Interrupts . | . . . Stealth | -11 -10 -10 --------- Run | Yrd Mat Sub Distress Signals 2 | . 2 . Communications Jammed . | . . . Distress Signals . | . . . Times Spotted 22 | . 15 7 Peak Tracking Total 4 | . 4 2 Tactical Retreats 1 | . 1 . Traps | -11 -10 -10 ------- Run | Yrd Mat Sub Traps Triggered 3 | . 2 1 Indirectly . | . . . Trap Hack Attempts . | . . . Triggered . | . . . Disarmed . | . . . Reprogrammed . | . . . Reused . | . . . Traps Extracted . | . . . Installed . | . . . Triggered . | . . . Machines | -11 -10 -10 ---------- Run | Yrd Mat Sub Machines Disabled . | . . . Max in Single Turn . | . . . Machines Repaired . | . . . Machines Dismantled . | . . . Machines Sabotaged . | . . . Overloaded Fab Kills . | . . . Hacking | -11 -10 -10 --------- Run | Yrd Mat Sub Machines Accessed 3 | . 3 . Terminals 3 | . 3 . Fabricators . | . . . Repair Stations . | . . . Recycling Units . | . . . Scanalyzers . | . . . Garrison Access . | . . . Total Hacks 8 | . 8 . Successful 2 | . 2 . Failed 6 | . 6 . Catastrophic 1 | . 1 . Database Lockouts . | . . . Manual . | . . . Terminals 8 | . 8 . Fabricators . | . . . Repair Stations . | . . . Recycling Units . | . . . Scanalyzers . | . . . Garrison Access . | . . . Terminal Hacks 2 | . 2 . Robot Analysis 1 | . 1 . Prototype ID Bank 1 | . 1 . Fabricator Hacks . | . . . Repair Station Hacks . | . . . Recycling Unit Hacks . | . . . Scanalyzer . | . . . Garrison Access Hacks . | . . . Unauthorized Hacks . | . . . Terminals . | . . . Fabricators . | . . . Repair Stations . | . . . Recycling Units . | . . . Scanalyzers . | . . . Garrison Access . | . . . Data Cores Recovered . | . . . Used . | . . . Hacking Detections 3 | . 3 . Full Trace Events . | . . . Feedback Events . | . . . Feedback Blocked . | . . . Robot Schematics Acquired . | . . . Robots Built . | . . . Authchips . | . . . Time . | . . . Total Robot Build Rating . | . . . Part Schematics Acquired . | . . . Parts Built . | . . . Authchips . | . . . Time . | . . . Total Part Build Rating . | . . . Parts Repaired . | . . . Time . | . . . Parts Recycled . | . . . Recycled Matter . | . . . Retrieved Matter . | . . . Retrieved Components . | . . . Parts Scanalyzed . | . . . Part Schematics Acquired . | . . . Parts Damaged . | . . . Bothacking | -11 -10 -10 ------------ Run | Yrd Mat Sub Used RIF Installer . | . . . Robots Hacked . | . . . Non-combat . | . . . Combat . | . . . Robot Hacks Applied . | . . . Relay Couplers Released . | . . . Fabnet Peak Effective % . | . . . Robots Rewired . | . . . Allies Hacked . | . . . Hacks Repelled . | . . . Allies | -11 -10 -10 -------- Run | Yrd Mat Sub Total Allies . | . . . Largest Group . | . . . Highest-Rated Group . | . . . Highest-Rated Ally . | . . . Total Orders . | . . . Ally Attacks . | . . . Total Damage . | . . . Kills . | . . . Allies Corrupted . | . . . Allies Melted . | . . . Intel | -11 -10 -10 ------- Run | Yrd Mat Sub Robot Analysis Total 1 | . 1 . Derelict Logs Recovered . | . . . Drone Launches . | . . . Drone Recoveries . | . . . Exploration | -11 -10 -10 ------------- Run | Yrd Mat Sub Turns Passed 1658 | 72 918 668 Spaces Moved 703 | 47 411 245 Core 15 | 13 . 2 Treads 688 | 34 411 243 Legs . | . . . Wheels . | . . . Hover . | . . . Flight . | . . . Fastest Speed 50 | 50 160 160 Average Speed 183 | 129 160 232 Slowest Speed 550 | 160 160 550 Overloaded Moves . | . . . Propulsion Burnouts . | . . . Robots Hopped . | . . . Cave-ins Triggered . | . . . Exploration Rate (%) 29 | 4 63 21 Regions Visited 2 Branch Regions 1 Pre-discovered Areas . | . . . Known Exits Taken . | . . . Unknown Exits Taken 2 | 1 1 . Scrap Searched 1 | . . 1 Spaces Dug 8 | . 8 . Terrain Destroyed 48 | . 8 40 Melee 8 | . 8 . Projectile . | . . . AOE 40 | . . 40 Terrain Rammed . | . . . Walls Destroyed . | . . . Machines Disabled . | . . . Actions | -11 -10 -10 --------- Run | Yrd Mat Sub Total 878 | 57 526 295 Wait 4 | . 4 . Move 701 | 46 410 245 Hop . | . . . Pick Up 26 | 5 18 3 Fast Attach 2 | 2 . . Attach 14 | 4 4 6 Detach . | . . . Swap 5 | . 3 2 Drop 6 | . 4 2 Fire 102 | . 65 37 Melee 17 | . 17 . Ram . | . . . Kick . | . . . Crush 1 | . 1 . Escape Stasis . | . . . Rewire . | . . . Trap . | . . . Miscellaneous . | . . . Route ------- -11/Scrapyard -10/Materials (discovered 3 exits: [*Mat] / [*Min] / [*Sub]) -10/Subcaves History --------- Turn | Location | Event 11 | -11/Scrapyard | Discovered new exit (range 16) 73 | -11/Scrapyard | Entered Materials 101 | -10/Materials | Discovered new exit (range 16) 314 | -10/Materials | Build established: Mutant 701 | -10/Materials | Discovered new exit (range 12) 983 | -10/Materials | Discovered new exit (range 3) 991 | -10/Materials | Entered Subcaves 1633 | -10/Subcaves | Core integrity fell below 50% 1657 | -10/Subcaves | Core integrity fell below 20% 1659 | -10/Subcaves | Destroyed by 2N-VBT(R) with Subdweller Machine Gun Last Messages --------------- 01200_ Acquired 10 matter. 01207_ Acquired 14 matter. 01243_ Acquired 6 matter. 01258_ Acquired 1 matter. 01278_ Acquired 10 matter. 01355_ Triggered Piercing Trap. 01355_ Spikes shoot up from the floor. 01355_ Critical hit (Impale). 01590_ 96-UT3(O) collects matter. 01607_ Lgt. Treads destroyed. 01618_ Grenade Launcher destroyed. 01624_ Assault Rifle destroyed. 01628_ Ion Engine destroyed. 01632_ Critical hit (Destroy). 01632_ Battle Rifle destroyed. 01636_ Grenade Launcher destroyed. 01640_ Sensor Array destroyed. 01641_ Riot Gun destroyed. 01653_ 2N-VBT(R) suffers critical hit (Destroy). 01654_ VC-3XF(R) IFF system glitched. Map ----- +----------------------------------------------------+ | ????????????????????????????????????????????????? | | ????????????????????????????????????????????????? | | ????????????????????????????????????????????????? | | ????????????????????????????????????????????????? | | ????????????????????????????????????????????????? | | ????????????????????????????????????????????????? | | ????????????????????????????????????????????????? | | ????????????????????????????????????????????????? | | ????????????????????????????????????????????????? | | ????????????????????????????????????????????????? | | ???????????????????? #????????????????????????? | | ??????????????????? ????????????????????????? | | ??????????????????? ????????????????????????? | | ???????????????????# ????????????????????????? | | ???????????????????# ????????????????????????? | | ???????????????????# ????????????????????????? | | ???????????????????# ????????????????????????? | | ??????????????????## ????????????????????????? | | ???????????######## #???###??????????????????? | | ???????????# "" #??## ##?????????????????? | | ???????????? ####"""#?????????????????? | | ??????????????# " # # #?????????????????? | | ???????????? ???# "" " # #?????????????????? | | ##????????? ##???#" RR #?????????????????? | | ####??????? ##### #?????????????????? | | #????? # ?# @ #?????????????????? | | #???## ? ?## #?????????????????? | | ##???# ??? ##### ###???????????????? | | ##???? ??# ## ##??????????????? | | ###?????? ??????# #??????????????? | | ????????? ??????## """ #??????????????? | | ????????? ???????# "" #??????????????? | | ?????????# #???#### " ##?????????????? | | #????????# ??## #?????????????? | | ##???????# ?## ### % #?????????????? | | #??????## ### ###?# #?????????????? | | #?????## ## ### ##??# #?????????????? | | ##????## ### #?#####???## #?????????????? | | #?????# ## ##?####????# ##?????????????? | | ##???## # "#????#""" #??????????????? | | #??## "#?????"" " #??????????????? | | #??# #""#?????" " #??????????????? | | #??# ####?"#????#"" "##??????????????? | | #??###### ##????"?????""""????????????????? | | ##??????# ##?????????? #????????????????? | | #??????## #???????????"?????????????????? | | #???????# #?????????????????????????????? | | ####????## ##????????????????????????????? | | #???##### ##???????????????????????????? | | ##??## ## #???????????????????????????? | +----------------------------------------------------+ Best States ------------- Heat Dissipation 35 Energy Generation 10 Energy Capacity 250 Matter Stores 300 Matter Capacity 300 Sight Range 16 Robot Scan Range 14 Terrain Scan Density 10 Evasion (%) 50 Recoil Reduction 2 Item Schematics ----------------- None Robot Schematics ------------------ None Fabricated ------------ Nothing Alien Tech Used ----------------- None Achievements -------------- None Challenges ------------ None Game ------ Seed HoverSeismicBrace Manual? 0 Play Time 00:16:13 Cumulative 17.2 hours Start 2024.04.04 @ 19:40:43 End 2024.04.04 @ 19:54:45 Sessions 1 Manual Loads 0 Difficulty Rogue Special Mode None Game No. 31 Rogue 31 Adventurer 0 Explorer 0 Win Type - Total 0 Types 0/0/0/0/0/0/0/0/0 Lore% 19 Gallery% 17 Achievement% 16 Wizard Run 0 Options --------- Layout 1 ASCII 0 Keyboard 0 Movement Mouse Keybinds 0 Fullscreen 1 Font 24/Smallcaps Map View 50x35 Zoom Use 0% Tactical HUD 1 Map Filters NONE Filters NONE Steam 0 RUN: 9ecdef53-8a21-4efa-81fc-8273e904d6c7